[Event "Titled Tuesday Blitz April 19 Early 2022"]
[White "Garagulya, Konstantin"]
[Black "Pakleza, Zbigniew"]
[WhiteFideId "4128931"]
[BlackFideId "1119290"]
[WhiteElo "2329"]
[BlackElo "2467"]
[Result "0-1"]
[Round "03"]
[TimeControl "180+1"]
[Date "2022.04.19"]
[WhiteClock "0:00:01"]
[BlackClock "0:00:05"]

1. d4 {[%clk 0:02:59]}  d6 {[%clk 0:02:59]} 2. e4 {[%clk 0:02:57]}  Nf6 {[%clk 0:02:59]} 3. Nc3 {[%clk 0:02:49]}  c6 {[%clk 0:02:59]} 4. Nf3 {[%clk 0:02:43]}  Bg4 {[%clk 0:02:59]} 5. h3 {[%clk 0:02:42]}  Bh5 {[%clk 0:02:59]} 6. Bd3 {[%clk 0:02:41]}  e6 {[%clk 0:02:58]} 7. g4 {[%clk 0:02:41]}  Bg6 {[%clk 0:02:58]} 8. Be3 {[%clk 0:02:38]}  d5 {[%clk 0:02:57]} 9. exd5 {[%clk 0:02:31]}  cxd5 {[%clk 0:02:55]} 10. Ne5 {[%clk 0:02:30]}  Bxd3 {[%clk 0:02:44]} 11. Qxd3 {[%clk 0:02:30]}  Nc6 {[%clk 0:02:44]} 12. Qb5 {[%clk 0:02:18]}  Qc7 {[%clk 0:02:34]} 13. g5 {[%clk 0:01:59]}  Nd7 {[%clk 0:02:24]} 14. f4 {[%clk 0:01:50]}  a6 {[%clk 0:02:17]} 15. Qd3 {[%clk 0:01:44]}  g6 {[%clk 0:02:14]} 16. a3 {[%clk 0:01:41]}  Ne7 {[%clk 0:01:59]} 17. h4 {[%clk 0:01:34]}  h5 {[%clk 0:01:47]} 18. gxh6 {[%clk 0:01:34]}  Nf5 {[%clk 0:01:46]} 19. O-O-O {[%clk 0:01:23]}  Rxh6 {[%clk 0:01:41]} 20. Bf2 {[%clk 0:01:14]}  Nf6 {[%clk 0:01:31]} 21. Rdg1 {[%clk 0:01:11]}  O-O-O {[%clk 0:01:23]} 22. Kb1 {[%clk 0:01:11]}  Kb8 {[%clk 0:01:19]} 23. Rh3 {[%clk 0:00:52]}  Rc8 {[%clk 0:01:14]} 24. Be1 {[%clk 0:00:43]}  Bd6 {[%clk 0:00:55]} 25. Bf2 {[%clk 0:00:43]}  Rh7 {[%clk 0:00:50]} 26. Rc1 {[%clk 0:00:33]}  Nh5 {[%clk 0:00:42]} 27. Qf3 {[%clk 0:00:30]}  Bf8 {[%clk 0:00:32]} 28. Ne2 {[%clk 0:00:28]}  Ka8 {[%clk 0:00:28]} 29. Nd3 {[%clk 0:00:20]}  Nd6 {[%clk 0:00:21]} 30. Ne5 {[%clk 0:00:19]}  Nc4 {[%clk 0:00:16]} 31. Nxc4 {[%clk 0:00:18]}  Qxc4 {[%clk 0:00:16]} 32. c3 {[%clk 0:00:17]}  Qb5 {[%clk 0:00:15]} 33. Qd3 {[%clk 0:00:16]}  Qb6 {[%clk 0:00:13]} 34. Ka2 {[%clk 0:00:14]}  Bd6 {[%clk 0:00:13]} 35. Be3 {[%clk 0:00:14]}  Ng7 {[%clk 0:00:14]} 36. Rch1 {[%clk 0:00:13]}  Rch8 {[%clk 0:00:12]} 37. Ng3 {[%clk 0:00:13]}  Qc7 {[%clk 0:00:12]} 38. Ne2 {[%clk 0:00:12]}  Nf5 {[%clk 0:00:12]} 39. Bf2 {[%clk 0:00:09]}  Bxf4 {[%clk 0:00:13]} 40. Nxf4 {[%clk 0:00:08]}  Qxf4 {[%clk 0:00:13]} 41. c4 {[%clk 0:00:08]}  Qe4 {[%clk 0:00:11]} 42. Qc3 {[%clk 0:00:06]}  dxc4 {[%clk 0:00:11]} 43. Qxc4 {[%clk 0:00:06]}  Qd5 {[%clk 0:00:12]} 44. b3 {[%clk 0:00:05]}  Rh5 {[%clk 0:00:06]} 45. a4 {[%clk 0:00:04]}  g5 {[%clk 0:00:06]} 46. Qxd5 {[%clk 0:00:02]}  exd5 {[%clk 0:00:07]} 47. Rf3 {[%clk 0:00:02]}  gxh4 {[%clk 0:00:06]} 48. Rf4 {[%clk 0:00:01]}  h3 {[%clk 0:00:05]} 49. Rh2 {[%clk 0:00:01]}  Nd6 {[%clk 0:00:05]} 0-1


[Site "https://www.chess.com"]

[Event "Titled Tuesday Blitz April 19 Early 2022"]
[White "Golubeva, Oksana"]
[Black "Lazov, Toni"]
[WhiteFideId "4170164"]
[BlackFideId "15000770"]
[WhiteElo "2162"]
[BlackElo "2321"]
[Result "1-0"]
[Round "03"]
[TimeControl "180+1"]
[Date "2022.04.19"]
[WhiteClock "0:00:51"]
[BlackClock "0:00:42"]

1. Nf3 {[%clk 0:03:00]}  Nf6 {[%clk 0:02:57]} 2. e3 {[%clk 0:03:00]}  g6 {[%clk 0:02:57]} 3. d4 {[%clk 0:02:59]}  Bg7 {[%clk 0:02:58]} 4. b3 {[%clk 0:02:59]}  O-O {[%clk 0:02:59]} 5. Bb2 {[%clk 0:03:00]}  a5 {[%clk 0:02:59]} 6. a4 {[%clk 0:02:59]}  d6 {[%clk 0:02:56]} 7. Nbd2 {[%clk 0:02:59]}  Nc6 {[%clk 0:02:55]} 8. Nc4 {[%clk 0:02:58]}  Nd7 {[%clk 0:02:42]} 9. Be2 {[%clk 0:02:54]}  e5 {[%clk 0:02:42]} 10. dxe5 {[%clk 0:02:53]}  dxe5 {[%clk 0:02:41]} 11. O-O {[%clk 0:02:52]}  Qe7 {[%clk 0:02:41]} 12. Ba3 {[%clk 0:02:45]}  Nc5 {[%clk 0:02:36]} 13. Qd5 {[%clk 0:02:36]}  Nb4 {[%clk 0:02:36]} 14. Bxb4 {[%clk 0:02:17]}  axb4 {[%clk 0:02:37]} 15. Qd2 {[%clk 0:02:16]}  Ne4 {[%clk 0:02:32]} 16. Qc1 {[%clk 0:02:12]}  Nc3 {[%clk 0:02:31]} 17. Re1 {[%clk 0:02:09]}  Nxe2+ {[%clk 0:02:24]} 18. Rxe2 {[%clk 0:02:09]}  e4 {[%clk 0:02:24]} 19. Nd4 {[%clk 0:02:00]}  c5 {[%clk 0:02:24]} 20. Nb5 {[%clk 0:01:59]}  Bxa1 {[%clk 0:02:12]} 21. Qxa1 {[%clk 0:02:00]}  Bg4 {[%clk 0:02:10]} 22. Rd2 {[%clk 0:01:55]}  Rfd8 {[%clk 0:02:09]} 23. Ncd6 {[%clk 0:01:42]}  Bd7 {[%clk 0:01:57]} 24. Nxb7 {[%clk 0:01:41]}  Bxb5 {[%clk 0:01:57]} 25. Nxd8 {[%clk 0:01:40]}  Be8 {[%clk 0:01:34]} 26. Qd1 {[%clk 0:01:36]}  h5 {[%clk 0:01:34]} 27. h3 {[%clk 0:01:35]}  h4 {[%clk 0:01:30]} 28. Rd6 {[%clk 0:01:34]}  Rc8 {[%clk 0:01:23]} 29. Qd5 {[%clk 0:01:31]}  Rc7 {[%clk 0:01:20]} 30. Nc6 {[%clk 0:01:13]}  Bxc6 {[%clk 0:01:18]} 31. Rxc6 {[%clk 0:01:14]}  Rd7 {[%clk 0:01:17]} 32. Qxc5 {[%clk 0:01:11]}  Rd1+ {[%clk 0:01:09]} 33. Kh2 {[%clk 0:01:10]}  Qd7 {[%clk 0:01:07]} 34. Rc8+ {[%clk 0:01:02]}  Kh7 {[%clk 0:01:07]} 35. Rc7 {[%clk 0:01:01]}  Qe6 {[%clk 0:01:03]} 36. Qg5 {[%clk 0:00:57]}  Kg7 {[%clk 0:00:42]} 37. Qxh4 {[%clk 0:00:51]} 1-0


[Site "https://www.chess.com"]

[Event "Titled Tuesday Blitz April 19 Early 2022"]
[White "Gorshtein, Ido"]
[Black "Postnikov, Daniil"]
[WhiteFideId "2815532"]
[BlackFideId "4166329"]
[WhiteElo "2415"]
[BlackElo "2261"]
[Result "1-0"]
[Round "03"]
[TimeControl "180+1"]
[Date "2022.04.19"]
[WhiteClock "0:00:09"]
[BlackClock "0:00:01"]

1. Nf3 {[%clk 0:03:00]}  Nf6 {[%clk 0:02:59]} 2. g3 {[%clk 0:03:01]}  g6 {[%clk 0:02:59]} 3. Bg2 {[%clk 0:03:02]}  Bg7 {[%clk 0:02:59]} 4. O-O {[%clk 0:03:02]}  O-O {[%clk 0:02:59]} 5. d4 {[%clk 0:03:01]}  d6 {[%clk 0:02:59]} 6. Re1 {[%clk 0:03:00]}  c6 {[%clk 0:02:58]} 7. e4 {[%clk 0:03:00]}  Nbd7 {[%clk 0:02:54]} 8. e5 {[%clk 0:02:59]}  Nd5 {[%clk 0:02:39]} 9. Bg5 {[%clk 0:02:49]}  dxe5 {[%clk 0:02:33]} 10. dxe5 {[%clk 0:02:47]}  f6 {[%clk 0:02:32]} 11. Bd2 {[%clk 0:02:42]}  Nxe5 {[%clk 0:02:26]} 12. Nxe5 {[%clk 0:02:41]}  fxe5 {[%clk 0:02:27]} 13. Nc3 {[%clk 0:02:39]}  Nxc3 {[%clk 0:02:24]} 14. Bxc3 {[%clk 0:02:38]}  Bf5 {[%clk 0:02:24]} 15. Qe2 {[%clk 0:02:26]}  Qd6 {[%clk 0:02:22]} 16. Rad1 {[%clk 0:02:25]}  Qc5 {[%clk 0:02:20]} 17. Rd2 {[%clk 0:02:22]}  Rad8 {[%clk 0:02:18]} 18. Red1 {[%clk 0:02:13]}  Rd6 {[%clk 0:02:17]} 19. a3 {[%clk 0:02:04]}  a5 {[%clk 0:02:11]} 20. h3 {[%clk 0:01:49]}  h5 {[%clk 0:02:08]} 21. Kh2 {[%clk 0:01:49]}  Kh7 {[%clk 0:02:01]} 22. Re1 {[%clk 0:01:38]}  Rfd8 {[%clk 0:01:57]} 23. g4 {[%clk 0:01:19]}  hxg4 {[%clk 0:01:45]} 24. hxg4 {[%clk 0:01:20]}  Bc8 {[%clk 0:01:43]} 25. Be4 {[%clk 0:01:07]}  Rxd2 {[%clk 0:01:25]} 26. Bxd2 {[%clk 0:01:07]}  Rh8 {[%clk 0:01:26]} 27. Kg2 {[%clk 0:01:04]}  Kg8 {[%clk 0:01:23]} 28. Be3 {[%clk 0:01:02]}  Qd6 {[%clk 0:01:20]} 29. Rd1 {[%clk 0:01:01]}  Qf6 {[%clk 0:01:18]} 30. Rd8+ {[%clk 0:00:48]}  Kf7 {[%clk 0:01:18]} 31. g5 {[%clk 0:00:47]}  Bh3+ {[%clk 0:01:14]} 32. Kg3 {[%clk 0:00:44]}  Qe6 {[%clk 0:01:15]} 33. Rxh8 {[%clk 0:00:30]}  Bxh8 {[%clk 0:01:15]} 34. f3 {[%clk 0:00:28]}  Bf5 {[%clk 0:01:13]} 35. c4 {[%clk 0:00:25]}  Bg7 {[%clk 0:01:09]} 36. b4 {[%clk 0:00:23]}  axb4 {[%clk 0:01:00]} 37. axb4 {[%clk 0:00:24]}  Qd6 {[%clk 0:01:01]} 38. b5 {[%clk 0:00:23]}  Qa3 {[%clk 0:00:58]} 39. bxc6 {[%clk 0:00:21]}  bxc6 {[%clk 0:00:59]} 40. Bxc6 {[%clk 0:00:20]}  Bd3 {[%clk 0:00:57]} 41. Qd2 {[%clk 0:00:17]}  Bxc4 {[%clk 0:00:58]} 42. Qd8 {[%clk 0:00:13]}  Bf8 {[%clk 0:00:26]} 43. Bf2 {[%clk 0:00:09]}  Kg7 {[%clk 0:00:24]} 44. Be4 {[%clk 0:00:08]}  Qd6 {[%clk 0:00:23]} 45. Qc8 {[%clk 0:00:08]}  Qe6 {[%clk 0:00:20]} 46. Qe8 {[%clk 0:00:08]}  Qd6 {[%clk 0:00:17]} 47. Be3 {[%clk 0:00:07]}  Bf7 {[%clk 0:00:17]} 48. Qc8 {[%clk 0:00:07]}  Be6 {[%clk 0:00:16]} 49. Qc1 {[%clk 0:00:08]}  Bd5 {[%clk 0:00:16]} 50. Qh1 {[%clk 0:00:08]}  Bxe4 {[%clk 0:00:15]} 51. fxe4 {[%clk 0:00:08]}  Qe6 {[%clk 0:00:15]} 52. Qf3 {[%clk 0:00:07]}  Kg8 {[%clk 0:00:15]} 53. Qg4 {[%clk 0:00:07]}  Qxg4+ {[%clk 0:00:15]} 54. Kxg4 {[%clk 0:00:08]}  Kf7 {[%clk 0:00:15]} 55. Kf3 {[%clk 0:00:09]}  Bg7 {[%clk 0:00:16]} 56. Bc5 {[%clk 0:00:08]}  Ke6 {[%clk 0:00:16]} 57. Ke3 {[%clk 0:00:09]}  Kd7 {[%clk 0:00:14]} 58. Kd3 {[%clk 0:00:09]}  Bf8 {[%clk 0:00:15]} 59. Kc4 {[%clk 0:00:10]}  Kc6 {[%clk 0:00:15]} 60. Bb4 {[%clk 0:00:10]}  Kd7 {[%clk 0:00:02]} 61. Kb5 {[%clk 0:00:09]}  Kc7 {[%clk 0:00:01]} 62. Bc5 {[%clk 0:00:09]} 1-0


[Site "https://www.chess.com"]

[Event "Titled Tuesday Blitz April 19 Early 2022"]
[White "Gracia Alvarez, Gerardo Antonio"]
[Black "Atakishiyev, Elmar"]
[WhiteFideId "5109124"]
[BlackFideId "13410547"]
[WhiteElo "2139"]
[BlackElo "2087"]
[Result "0-1"]
[Round "03"]
[TimeControl "180+1"]
[Date "2022.04.19"]
[WhiteClock "0:00:23"]
[BlackClock "0:00:41"]

1. c4 {[%clk 0:03:00]}  Nf6 {[%clk 0:02:57]} 2. Nc3 {[%clk 0:02:59]}  d6 {[%clk 0:02:57]} 3. d4 {[%clk 0:02:59]}  g6 {[%clk 0:02:57]} 4. e4 {[%clk 0:02:57]}  Bg7 {[%clk 0:02:57]} 5. Be2 {[%clk 0:02:57]}  O-O {[%clk 0:02:54]} 6. Be3 {[%clk 0:02:58]}  e5 {[%clk 0:02:54]} 7. d5 {[%clk 0:02:58]}  Na6 {[%clk 0:02:54]} 8. g4 {[%clk 0:02:56]}  Nc5 {[%clk 0:02:55]} 9. f3 {[%clk 0:02:56]}  a5 {[%clk 0:02:52]} 10. h4 {[%clk 0:02:54]}  h5 {[%clk 0:02:52]} 11. g5 {[%clk 0:02:53]}  Nfd7 {[%clk 0:02:52]} 12. Qd2 {[%clk 0:02:49]}  a4 {[%clk 0:02:48]} 13. O-O-O {[%clk 0:02:47]}  c6 {[%clk 0:02:37]} 14. Kb1 {[%clk 0:02:46]}  Qa5 {[%clk 0:02:35]} 15. Nh3 {[%clk 0:02:18]}  Rb8 {[%clk 0:01:55]} 16. Nf2 {[%clk 0:02:15]}  Rd8 {[%clk 0:01:48]} 17. Rc1 {[%clk 0:01:18]}  Ra8 {[%clk 0:01:39]} 18. Rc2 {[%clk 0:01:12]}  Nb3 {[%clk 0:01:34]} 19. Qd1 {[%clk 0:01:09]}  Ndc5 {[%clk 0:01:34]} 20. Nd3 {[%clk 0:01:04]}  Nd4 {[%clk 0:01:31]} 21. Rd2 {[%clk 0:00:59]}  Bd7 {[%clk 0:01:07]} 22. Bf1 {[%clk 0:00:49]}  Ncb3 {[%clk 0:00:54]} 23. axb3 {[%clk 0:00:32]}  axb3 {[%clk 0:00:55]} 24. Kc1 {[%clk 0:00:32]}  Qa1+ {[%clk 0:00:54]} 25. Nb1 {[%clk 0:00:33]}  Ra4 {[%clk 0:00:55]} 26. Ne1 {[%clk 0:00:25]}  Qxb1+ {[%clk 0:00:40]} 27. Kxb1 {[%clk 0:00:24]}  Rda8 {[%clk 0:00:41]} 28. Qxb3 {[%clk 0:00:23]}  Ra1# {[%clk 0:00:41]} 0-1


[Site "https://www.chess.com"]

[Event "Titled Tuesday Blitz April 19 Early 2022"]
[White "Gulevich, Artem"]
[Black "Korchmar, Vasiliy"]
[WhiteFideId "24119580"]
[BlackFideId "24131750"]
[WhiteElo "2218"]
[BlackElo "2370"]
[Result "0-1"]
[Round "03"]
[TimeControl "180+1"]
[Date "2022.04.19"]
[WhiteClock "0:00:24"]
[BlackClock "0:00:07"]

1. Nf3 {[%clk 0:03:00]}  d5 {[%clk 0:03:00]} 2. b3 {[%clk 0:02:59]}  Bf5 {[%clk 0:02:59]} 3. Bb2 {[%clk 0:03:00]}  e6 {[%clk 0:03:00]} 4. e3 {[%clk 0:03:00]}  Nf6 {[%clk 0:03:00]} 5. Be2 {[%clk 0:03:00]}  h6 {[%clk 0:03:01]} 6. O-O {[%clk 0:03:01]}  Be7 {[%clk 0:03:01]} 7. d4 {[%clk 0:03:01]}  O-O {[%clk 0:03:01]} 8. Nbd2 {[%clk 0:03:01]}  a5 {[%clk 0:02:57]} 9. a3 {[%clk 0:03:01]}  Nbd7 {[%clk 0:02:56]} 10. c4 {[%clk 0:03:01]}  c6 {[%clk 0:02:57]} 11. Bc3 {[%clk 0:02:59]}  Bd6 {[%clk 0:02:54]} 12. Qc1 {[%clk 0:02:58]}  Qe7 {[%clk 0:02:53]} 13. Qb2 {[%clk 0:02:57]}  Rfb8 {[%clk 0:02:48]} 14. b4 {[%clk 0:02:54]}  axb4 {[%clk 0:01:53]} 15. axb4 {[%clk 0:02:55]}  Ne4 {[%clk 0:01:42]} 16. Nxe4 {[%clk 0:02:54]}  Bxe4 {[%clk 0:01:43]} 17. Nd2 {[%clk 0:02:55]}  Bg6 {[%clk 0:01:43]} 18. b5 {[%clk 0:02:52]}  c5 {[%clk 0:01:13]} 19. dxc5 {[%clk 0:02:46]}  Nxc5 {[%clk 0:01:11]} 20. Bxg7 {[%clk 0:02:46]}  e5 {[%clk 0:00:54]} 21. Bxh6 {[%clk 0:02:14]}  Qh4 {[%clk 0:00:54]} 22. cxd5 {[%clk 0:02:06]}  Qxh6 {[%clk 0:00:54]} 23. Nc4 {[%clk 0:02:05]}  Be4 {[%clk 0:00:50]} 24. f3 {[%clk 0:02:00]}  Bxd5 {[%clk 0:00:40]} 25. Nxd6 {[%clk 0:01:51]}  Qxd6 {[%clk 0:00:41]} 26. Rxa8 {[%clk 0:01:33]}  Rxa8 {[%clk 0:00:41]} 27. Rd1 {[%clk 0:01:33]}  Qe6 {[%clk 0:00:41]} 28. e4 {[%clk 0:01:27]}  Bb3 {[%clk 0:00:36]} 29. Rc1 {[%clk 0:01:23]}  Ra2 {[%clk 0:00:35]} 30. Qc3 {[%clk 0:01:19]}  b6 {[%clk 0:00:32]} 31. Bf1 {[%clk 0:01:18]}  Qd6 {[%clk 0:00:28]} 32. Qe1 {[%clk 0:01:09]}  Qd4+ {[%clk 0:00:24]} 33. Kh1 {[%clk 0:01:09]}  Qf2 {[%clk 0:00:25]} 34. Qxf2 {[%clk 0:00:58]}  Rxf2 {[%clk 0:00:26]} 35. Ra1 {[%clk 0:00:57]}  Ra2 {[%clk 0:00:24]} 36. Rc1 {[%clk 0:00:50]}  Ba4 {[%clk 0:00:20]} 37. h4 {[%clk 0:00:49]}  Rb2 {[%clk 0:00:20]} 38. Ra1 {[%clk 0:00:49]}  Bxb5 {[%clk 0:00:20]} 39. Bxb5 {[%clk 0:00:44]}  Rxb5 {[%clk 0:00:21]} 40. Ra8+ {[%clk 0:00:44]}  Kg7 {[%clk 0:00:21]} 41. Re8 {[%clk 0:00:44]}  Nd3 {[%clk 0:00:20]} 42. Rd8 {[%clk 0:00:43]}  Nf4 {[%clk 0:00:18]} 43. g3 {[%clk 0:00:41]}  Rb1+ {[%clk 0:00:17]} 44. Kh2 {[%clk 0:00:41]}  Rb2+ {[%clk 0:00:17]} 45. Kh1 {[%clk 0:00:39]}  Ne6 {[%clk 0:00:18]} 46. Rd5 {[%clk 0:00:38]}  Kf6 {[%clk 0:00:17]} 47. f4 {[%clk 0:00:38]}  exf4 {[%clk 0:00:17]} 48. gxf4 {[%clk 0:00:39]}  b5 {[%clk 0:00:16]} 49. Rf5+ {[%clk 0:00:39]}  Kg7 {[%clk 0:00:15]} 50. h5 {[%clk 0:00:36]}  b4 {[%clk 0:00:15]} 51. h6+ {[%clk 0:00:36]}  Kxh6 {[%clk 0:00:09]} 52. Rxf7 {[%clk 0:00:36]}  Nc5 {[%clk 0:00:08]} 53. e5 {[%clk 0:00:32]}  b3 {[%clk 0:00:07]} 54. e6 {[%clk 0:00:33]}  Re2 {[%clk 0:00:06]} 55. Rf6+ {[%clk 0:00:25]}  Kg7 {[%clk 0:00:06]} 56. Rf7+ {[%clk 0:00:24]}  Kg8 {[%clk 0:00:07]} 0-1


[Site "https://www.chess.com"]

[Event "Titled Tuesday Blitz April 19 Early 2022"]
[White "Dronavalli, Harika"]
[Black "Jegorovas, Aleksandras"]
[WhiteFideId "5015197"]
[BlackFideId "12801950"]
[WhiteElo "2382"]
[BlackElo "2247"]
[Result "0-1"]
[Round "03"]
[TimeControl "180+1"]
[Date "2022.04.19"]
[WhiteClock "0:00:19"]
[BlackClock "0:00:27"]

1. c4 {[%clk 0:02:58]}  Nf6 {[%clk 0:02:56]} 2. Nc3 {[%clk 0:02:58]}  c5 {[%clk 0:02:54]} 3. Nf3 {[%clk 0:02:56]}  e6 {[%clk 0:02:54]} 4. g3 {[%clk 0:02:54]}  b6 {[%clk 0:02:54]} 5. Bg2 {[%clk 0:02:54]}  Bb7 {[%clk 0:02:54]} 6. O-O {[%clk 0:02:55]}  Be7 {[%clk 0:02:53]} 7. Re1 {[%clk 0:02:56]}  a6 {[%clk 0:02:53]} 8. e4 {[%clk 0:02:55]}  d6 {[%clk 0:02:53]} 9. d4 {[%clk 0:02:56]}  cxd4 {[%clk 0:02:53]} 10. Nxd4 {[%clk 0:02:57]}  Qc7 {[%clk 0:02:54]} 11. Be3 {[%clk 0:02:56]}  Nbd7 {[%clk 0:02:54]} 12. Rc1 {[%clk 0:02:56]}  Rc8 {[%clk 0:02:54]} 13. f4 {[%clk 0:02:55]}  Qb8 {[%clk 0:02:54]} 14. b3 {[%clk 0:02:55]}  Qa8 {[%clk 0:02:52]} 15. Bf2 {[%clk 0:02:55]}  g6 {[%clk 0:02:51]} 16. Qe2 {[%clk 0:02:44]}  O-O {[%clk 0:02:49]} 17. g4 {[%clk 0:02:39]}  Rfe8 {[%clk 0:02:44]} 18. g5 {[%clk 0:02:37]}  Nh5 {[%clk 0:02:44]} 19. Qg4 {[%clk 0:02:37]}  Nxf4 {[%clk 0:02:32]} 20. Qxf4 {[%clk 0:02:37]}  e5 {[%clk 0:02:32]} 21. Qg4 {[%clk 0:02:29]}  exd4 {[%clk 0:02:29]} 22. Bxd4 {[%clk 0:02:17]}  Ne5 {[%clk 0:02:28]} 23. Qg3 {[%clk 0:02:15]}  Bf8 {[%clk 0:02:23]} 24. Bxb6 {[%clk 0:02:07]}  Bg7 {[%clk 0:02:05]} 25. Kh1 {[%clk 0:02:06]}  Nd7 {[%clk 0:02:02]} 26. Ba5 {[%clk 0:01:44]}  Bxc3 {[%clk 0:02:00]} 27. Bxc3 {[%clk 0:01:43]}  Bxe4 {[%clk 0:02:00]} 28. Rxe4 {[%clk 0:01:41]}  Rxe4 {[%clk 0:02:00]} 29. Qxd6 {[%clk 0:01:39]}  Qb7 {[%clk 0:01:23]} 30. Rf1 {[%clk 0:01:31]}  Rce8 {[%clk 0:01:21]} 31. Qd3 {[%clk 0:01:03]}  Qc6 {[%clk 0:01:07]} 32. Bxe4 {[%clk 0:00:59]}  Rxe4 {[%clk 0:01:06]} 33. Qf3 {[%clk 0:00:57]}  Qe6 {[%clk 0:01:04]} 34. Bf6 {[%clk 0:00:41]}  Nxf6 {[%clk 0:01:02]} 35. Qxf6 {[%clk 0:00:39]}  Qe8 {[%clk 0:01:00]} 36. Qf2 {[%clk 0:00:26]}  Re2 {[%clk 0:00:58]} 37. Qf3 {[%clk 0:00:25]}  Rxa2 {[%clk 0:00:58]} 38. Rd1 {[%clk 0:00:21]}  Re2 {[%clk 0:00:53]} 39. Kg1 {[%clk 0:00:20]}  Re3 {[%clk 0:00:52]} 40. Qf6 {[%clk 0:00:19]}  Re1+ {[%clk 0:00:46]} 41. Rxe1 {[%clk 0:00:20]}  Qxe1+ {[%clk 0:00:47]} 42. Kg2 {[%clk 0:00:21]}  Qe2+ {[%clk 0:00:45]} 43. Kg1 {[%clk 0:00:21]}  Qd1+ {[%clk 0:00:44]} 44. Kg2 {[%clk 0:00:21]}  Qxb3 {[%clk 0:00:42]} 45. Qd8+ {[%clk 0:00:21]}  Kg7 {[%clk 0:00:42]} 46. Qf6+ {[%clk 0:00:22]}  Kg8 {[%clk 0:00:43]} 47. Qxa6 {[%clk 0:00:22]}  Qc2+ {[%clk 0:00:41]} 48. Kf3 {[%clk 0:00:22]}  Qf5+ {[%clk 0:00:40]} 49. Ke3 {[%clk 0:00:23]}  Qxg5+ {[%clk 0:00:40]} 50. Kd4 {[%clk 0:00:24]}  Qf4+ {[%clk 0:00:40]} 51. Kc3 {[%clk 0:00:24]}  Qxh2 {[%clk 0:00:40]} 52. Qc8+ {[%clk 0:00:24]}  Kg7 {[%clk 0:00:39]} 53. c5 {[%clk 0:00:24]}  Qg3+ {[%clk 0:00:39]} 54. Kc4 {[%clk 0:00:24]}  Qf4+ {[%clk 0:00:39]} 55. Kb5 {[%clk 0:00:25]}  Qf1+ {[%clk 0:00:39]} 56. Kc6 {[%clk 0:00:25]}  h5 {[%clk 0:00:38]} 57. Qd8 {[%clk 0:00:23]}  Qf3+ {[%clk 0:00:37]} 58. Kb6 {[%clk 0:00:21]}  Qb3+ {[%clk 0:00:36]} 59. Kc7 {[%clk 0:00:22]}  Qg3+ {[%clk 0:00:35]} 60. Qd6 {[%clk 0:00:22]}  h4 {[%clk 0:00:35]} 61. c6 {[%clk 0:00:22]}  Qxd6+ {[%clk 0:00:32]} 62. Kxd6 {[%clk 0:00:22]}  h3 {[%clk 0:00:32]} 63. c7 {[%clk 0:00:22]}  h2 {[%clk 0:00:33]} 64. c8=Q {[%clk 0:00:23]}  h1=Q {[%clk 0:00:33]} 65. Qc3+ {[%clk 0:00:23]}  Kh7 {[%clk 0:00:32]} 66. Qf6 {[%clk 0:00:21]}  Qb7 {[%clk 0:00:28]} 67. Kc5 {[%clk 0:00:20]}  Qd7 {[%clk 0:00:27]} 68. Kc4 {[%clk 0:00:19]}  Qe6+ {[%clk 0:00:27]} 0-1


[Site "https://www.chess.com"]

[Event "Titled Tuesday Blitz April 19 Early 2022"]
[White "Hernandez Bermudez, Ulises Eduardo"]
[Black "Zia, Tahsin Tajwar"]
[WhiteFideId "3902510"]
[BlackFideId "10211888"]
[WhiteElo "2056"]
[BlackElo "1800"]
[Result "0-1"]
[Round "03"]
[TimeControl "180+1"]
[Date "2022.04.19"]
[WhiteClock "0:00:31"]
[BlackClock "0:00:50"]

1. e4 {[%clk 0:02:59]}  c6 {[%clk 0:02:55]} 2. d4 {[%clk 0:02:59]}  d5 {[%clk 0:02:56]} 3. exd5 {[%clk 0:02:59]}  cxd5 {[%clk 0:02:56]} 4. Bd3 {[%clk 0:03:00]}  Nc6 {[%clk 0:02:56]} 5. c3 {[%clk 0:03:00]}  Nf6 {[%clk 0:02:57]} 6. Bf4 {[%clk 0:03:00]}  Bg4 {[%clk 0:02:57]} 7. Qb3 {[%clk 0:03:00]}  Qd7 {[%clk 0:02:57]} 8. Nd2 {[%clk 0:03:00]}  e6 {[%clk 0:02:57]} 9. Ngf3 {[%clk 0:03:00]}  Bd6 {[%clk 0:02:55]} 10. Ne5 {[%clk 0:02:59]}  Bxe5 {[%clk 0:02:54]} 11. dxe5 {[%clk 0:02:59]}  Nh5 {[%clk 0:02:55]} 12. Be3 {[%clk 0:02:46]}  Nxe5 {[%clk 0:02:26]} 13. Bb5 {[%clk 0:02:45]}  Nc6 {[%clk 0:02:26]} 14. Qa4 {[%clk 0:02:42]}  Nf6 {[%clk 0:02:22]} 15. Nb3 {[%clk 0:02:32]}  O-O {[%clk 0:02:15]} 16. Nc5 {[%clk 0:02:31]}  Qc7 {[%clk 0:02:13]} 17. Nxb7 {[%clk 0:02:22]}  Qxb7 {[%clk 0:02:14]} 18. Bxc6 {[%clk 0:02:22]}  Qxb2 {[%clk 0:02:14]} 19. O-O {[%clk 0:02:22]}  Rab8 {[%clk 0:02:08]} 20. Bd4 {[%clk 0:02:21]}  Be2 {[%clk 0:02:04]} 21. Rfe1 {[%clk 0:02:15]}  Bc4 {[%clk 0:02:03]} 22. Qxa7 {[%clk 0:02:11]}  Ne4 {[%clk 0:01:58]} 23. Qe7 {[%clk 0:01:38]}  Qd2 {[%clk 0:01:36]} 24. Rad1 {[%clk 0:01:27]}  Qh6 {[%clk 0:01:25]} 25. f3 {[%clk 0:01:23]}  Nf6 {[%clk 0:01:13]} 26. a4 {[%clk 0:01:15]}  Qg6 {[%clk 0:01:10]} 27. a5 {[%clk 0:01:13]}  Rb2 {[%clk 0:01:09]} 28. Bf2 {[%clk 0:01:09]}  Qc2 {[%clk 0:01:05]} 29. Rf1 {[%clk 0:01:07]}  Bxf1 {[%clk 0:01:02]} 30. Rxf1 {[%clk 0:01:08]}  Rb1 {[%clk 0:01:01]} 31. Bc5 {[%clk 0:00:57]}  Rfb8 {[%clk 0:00:59]} 32. Bb4 {[%clk 0:00:46]}  Rb2 {[%clk 0:00:55]} 33. Be8 {[%clk 0:00:31]}  Qxg2# {[%clk 0:00:50]} 0-1


[Site "https://www.chess.com"]